bitfinex/quotes_SOLUSD_20230116
["timestamp","ask_amount","ask_price","bid_price","bid_amount"]
[1673906056913,17.0,23.663,23.647,223.8711]
[1673906057314,17.0,23.663,23.648,20.0]
[1673906057960,17.0,23.663,23.647,223.8711]
[1673906058579,12.16,23.66,23.641,139.2657]
[1673906058794,17.0,23.659,23.643,20.0]
[1673906059001,17.0,23.659,23.644,20.0]
[1673906060369,12.16,23.66,23.644,20.0]
[1673906060782,12.16,23.66,23.645,20.0]
[1673906061007,17.0,23.659,23.646,20.0]
[1673906062377,12.16,23.66,23.645,20.0]
[1673906062596,20.0,23.666,23.646,20.0]
[1673906062777,17.0,23.665,23.646,38.908252]
[1673906063323,17.0,23.665,23.646,20.0]
[1673906064473,20.0,23.666,23.646,20.0]
[1673906064799,20.0,23.666,23.647,20.0]
[1673906065202,20.0,23.666,23.648,20.0]
[1673906065827,17.0,23.665,23.648,20.0]
[1673906066269,12.16,23.66,23.648,20.0]
[1673906066460,17.0,23.659,23.642,40.0]
[1673906066669,17.0,23.659,23.642,20.0]
[1673906067009,17.0,23.659,23.643,20.0]
[1673906067327,17.0,23.659,23.644,20.0]
[1673906067626,17.0,23.659,23.645,20.0]
[1673906067851,51.71,23.666,23.647,20.0]
[1673906068029,17.0,23.665,23.648,20.0]
[1673906070791,17.0,23.665,23.649,20.0]
[1673906072993,17.0,23.665,23.648,20.0]
[1673906073313,20.0,23.664,23.644,20.0]
[1673906073622,17.0,23.663,23.644,20.0]
[1673906073837,20.0,23.662,23.644,20.0]
[1673906074028,17.0,23.661,23.644,20.0]
[1673906074770,32.16,23.66,23.644,20.0]
[1673906074976,17.0,23.659,23.644,20.0]
[1673906075185,20.0,23.658,23.642,20.0]
[1673906075415,17.0,23.657,23.642,20.0]
[1673906076249,17.0,23.657,23.641,119.2657]
[1673906076463,20.0,23.655,23.641,119.2657]
[1673906076783,17.0,23.654,23.641,119.2657]
[1673906077605,20.0,23.653,23.641,119.2657]
[1673906078021,17.0,23.652,23.641,119.2657]
[1673906078447,12.19,23.65,23.631,20.0]
[1673906078655,12.19,23.65,23.632,114.7773]
[1673906078868,17.0,23.649,23.635,20.0]
[1673906079078,17.0,23.649,23.632,114.7773]
[1673906079285,31.74,23.648,23.625,20.0]
[1673906079498,17.0,23.647,23.625,20.0]
[1673906079830,12.14,23.64,23.625,20.0]
[1673906080040,17.0,23.639,23.622,111.746]
[1673906080346,20.0,23.638,23.622,111.746]
[1673906080565,17.0,23.637,23.622,111.746]
[1673906085921,31.75,23.639,23.622,111.746]
[1673906086131,12.14,23.64,23.623,20.0]
[1673906086544,12.14,23.64,23.625,20.0]
[1673906087930,12.14,23.64,23.624,24.96864056]
[1673906088121,20.0,23.639,23.624,24.96864056]
[1673906088453,12.14,23.64,23.625,20.0]
[1673906088679,31.75,23.641,23.625,20.0]
[1673906088873,20.0,23.64,23.625,20.0]
[1673906089086,20.0,23.638,23.624,24.96864056]
[1673906089278,20.0,23.638,23.623,20.0]
[1673906089480,20.0,23.638,23.622,111.746]
[1673906089709,17.0,23.637,23.622,111.746]
[1673906091390,20.0,23.638,23.623,20.0]
[1673906092030,20.0,23.638,23.622,111.746]
[1673906092757,17.0,23.637,23.623,20.0]
[1673906094129,17.0,23.637,23.622,111.746]
[1673906095372,20.0,23.639,23.622,111.746]
[1673906095790,20.0,23.639,23.623,20.0]
[1673906096841,17.0,23.638,23.623,20.0]
[1673906097057,17.0,23.639,23.623,20.0]
[1673906099379,31.74,23.645,23.624,17.0]
[1673906099574,16.2,23.65,23.625,20.0]
[1673906099575,31.74,23.648,23.625,20.0]
[1673906099901,20.0,23.646,23.627,20.0]
[1673906100097,20.0,23.646,23.628,20.0]
[1673906100310,20.0,23.646,23.626,20.0]
[1673906100637,51.74,23.646,23.626,20.0]
[1673906101569,17.0,23.645,23.614,42.35]
[1673906101777,20.0,23.643,23.614,42.35]
[1673906101991,20.0,23.641,23.618,18.908252]
[1673906102204,51.75,23.64,23.618,18.908252]
[1673906102414,20.0,23.64,23.623,20.0]
[1673906102825,17.0,23.639,23.623,20.0]
[1673906103040,20.0,23.638,23.622,111.746]
[1673906103703,20.0,23.638,23.623,20.0]
[1673906103877,17.0,23.637,23.622,111.746]
[1673906105245,17.0,23.637,23.615,20.0]
[1673906105571,17.0,23.637,23.616,20.0]
[1673906105792,17.0,23.637,23.617,20.0]
[1673906106103,31.74,23.642,23.62,16.28]
[1673906106294,20.0,23.659,23.62,16.28]
[1673906106295,51.74,23.648,23.621,133.9765]
[1673906106505,20.0,23.648,23.621,169.884752]
[1673906106733,20.0,23.648,23.622,18.908252]
[1673906106947,20.0,23.648,23.624,20.0]
[1673906106948,20.0,23.646,23.624,20.0]
[1673906107256,20.0,23.646,23.625,55.908252]
[1673906107498,20.0,23.646,23.626,20.0]
[1673906107499,25.5090786,23.646,23.626,20.0]
[1673906107714,25.5090786,23.646,23.626,38.908252]
[1673906107907,25.5090786,23.646,23.627,18.908252]
[1673906108124,17.0,23.645,23.628,20.0]
[1673906108757,22.5090786,23.645,23.628,20.0]
[1673906109502,20.0,23.644,23.628,20.0]
[1673906109813,17.0,23.643,23.626,20.0]
[1673906110022,48.74,23.643,23.626,20.0]
[1673906110232,48.74,23.643,23.627,20.0]
[1673906110233,17.0,23.643,23.627,20.0]
[1673906110547,51.74,23.644,23.628,20.0]
[1673906110771,5.5090786,23.645,23.628,20.0]
[1673906111077,5.5090786,23.645,23.629,55.908252]
[1673906111599,5.5090786,23.645,23.63,18.40012264]
[1673906112526,5.5090786,23.645,23.628,20.0]
[1673906112527,17.0,23.644,23.628,20.0]
[1673906112870,20.0,23.643,23.626,38.40012264]
[1673906113172,17.0,23.642,23.626,38.40012264]
[1673906113802,17.0,23.642,23.626,20.0]
[1673906115055,31.74,23.645,23.627,20.0]
[1673906115257,31.73,23.652,23.629,20.0]
[1673906115578,31.73,23.652,23.63,35.40012264]
[1673906115790,5.5090786,23.647,23.631,20.0]
[1673906116435,5.5090786,23.647,23.632,35.40012264]
[1673906116641,5.5090786,23.647,23.634,20.0]
[1673906116954,5.5090786,23.647,23.635,55.40012264]
[1673906117157,5.5090786,23.647,23.636,20.0]
[1673906117374,5.5090786,23.647,23.637,20.0]
[1673906118207,5.5090786,23.647,23.634,114.4594]
[1673906118623,17.0,23.646,23.634,114.4594]
[1673906119162,5.5090786,23.647,23.635,38.40012264]
[1673906119482,5.5090786,23.647,23.637,20.0]
[1673906119680,5.5090786,23.647,23.636,17.0]
[1673906119880,5.5090786,23.647,23.635,18.40012264]
[1673906120091,5.5090786,23.647,23.636,20.0]
[1673906121363,5.5090786,23.647,23.634,114.4594]
[1673906121669,20.0,23.645,23.634,114.4594]
[1673906122083,17.0,23.644,23.634,114.4594]
[1673906122724,17.0,23.644,23.622,20.0]
[1673906122725,25.5090786,23.645,23.622,20.0]
[1673906122933,20.0,23.643,23.622,20.0]
[1673906123360,17.0,23.642,23.626,20.0]
[1673906126629,20.0,23.641,23.626,20.0]
[1673906126843,17.0,23.64,23.626,20.0]
[1673906127894,17.0,23.64,23.621,113.9765]
[1673906128084,60.83,23.64,23.621,113.9765]
[1673906128507,20.0,23.639,23.621,113.9765]
[1673906128842,20.0,23.637,23.621,113.9765]
[1673906129053,17.0,23.636,23.621,113.9765]
[1673906133457,17.0,23.636,23.615,20.0]
[1673906133780,17.0,23.636,23.616,20.0]
[1673906134202,12.08,23.64,23.617,20.0]
[1673906134392,20.0,23.641,23.618,20.0]
[1673906134602,20.0,23.64,23.619,20.0]
[1673906135984,17.0,23.639,23.619,20.0]
[1673906137023,20.0,23.638,23.619,20.0]
[1673906137354,17.0,23.637,23.618,20.0]
[1673906137669,20.0,23.636,23.618,20.0]
[1673906137876,17.0,23.635,23.618,20.0]
[1673906138506,17.0,23.635,23.619,20.0]
[1673906139956,17.0,23.635,23.618,20.0]
[1673906141342,12.16,23.63,23.614,116.6941]
[1673906141534,17.0,23.629,23.614,116.6941]
[1673906141745,48.76,23.629,23.614,116.6941]
[1673906142193,20.0,23.628,23.614,116.6941]
[1673906142384,17.0,23.627,23.614,116.6941]
[1673906142582,17.0,23.627,23.608,117.2095]
[1673906143016,31.77,23.626,23.608,117.2095]
[1673906143226,37.0,23.625,23.609,20.0]
[1673906143655,17.0,23.625,23.609,20.0]
[1673906143865,17.0,23.626,23.609,20.0]
[1673906144083,20.0,23.625,23.609,20.0]
[1673906144391,17.0,23.624,23.608,117.2095]
[1673906144606,17.0,23.624,23.609,20.0]
[1673906144793,17.0,23.624,23.608,117.2095]
[1673906145002,17.0,23.624,23.609,20.0]
[1673906145430,17.0,23.624,23.608,117.2095]
[1673906145856,17.0,23.624,23.609,20.0]
[1673906146683,31.76,23.627,23.609,20.0]
[1673906146897,414.3,23.639,23.611,20.0]
[1673906147127,20.0,23.635,23.612,17.0]
[1673906147324,20.0,23.635,23.612,35.40012264]
[1673906147535,20.0,23.634,23.613,38.40012264]
[1673906147741,20.0,23.633,23.614,17.0]
[1673906148085,20.0,23.634,23.615,20.0]
[1673906148270,414.3,23.639,23.615,58.40012264]
[1673906148472,394.3,23.639,23.62,12.2]
[1673906148685,51.74,23.644,23.621,20.0]
[1673906148918,20.0,23.643,23.622,17.0]
[1673906149105,20.0,23.643,23.623,20.0]
[1673906149437,20.0,23.644,23.624,17.0]
[1673906149762,20.0,23.644,23.625,20.0]
[1673906149949,20.0,23.644,23.626,17.0]
[1673906150379,20.0,23.644,23.627,20.0]
[1673906151006,17.0,23.643,23.624,20.0]
[1673906151747,40.0,23.642,23.621,239.2211]
[1673906151959,17.0,23.641,23.621,239.2211]
[1673906152149,20.0,23.64,23.621,239.2211]
[1673906152785,20.0,23.641,23.621,239.2211]
[1673906153199,20.0,23.64,23.621,219.2211]
[1673906153732,48.75,23.639,23.621,219.2211]
[1673906154156,20.0,23.638,23.621,219.2211]
[1673906154377,17.0,23.637,23.621,219.2211]
[1673906155325,17.0,23.637,23.622,20.0]
[1673906156168,17.0,23.637,23.621,219.2211]
[1673906157204,17.0,23.637,23.622,20.0]
[1673906157414,20.0,23.638,23.622,20.0]
[1673906157839,17.0,23.637,23.621,219.2211]
[1673906161220,17.0,23.637,23.622,20.0]
[1673906161429,17.0,23.637,23.621,219.2211]
[1673906162561,20.0,23.638,23.621,219.2211]
[1673906163838,20.0,23.638,23.622,20.0]
[1673906164043,20.0,23.638,23.621,219.2211]
[1673906164898,20.0,23.638,23.622,20.0]
[1673906165307,20.0,23.638,23.621,219.2211]
[1673906166153,20.0,23.638,23.622,20.0]
[1673906166788,20.0,23.64,23.622,20.0]
[1673906167104,17.0,23.639,23.622,20.0]
[1673906167320,20.0,23.64,23.623,20.0]
[1673906168144,17.0,23.639,23.623,20.0]
[1673906169857,17.0,23.639,23.622,20.0]
[1673906170252,17.0,23.639,23.623,20.0]
[1673906171104,17.0,23.639,23.622,40.0]
[1673906171326,17.0,23.639,23.622,20.0]
[1673906171630,17.0,23.639,23.621,219.2211]
[1673906171852,31.75,23.638,23.621,219.2211]
[1673906172047,17.0,23.637,23.621,219.2211]
[1673906172362,20.0,23.636,23.621,219.2211]
[1673906172578,17.0,23.635,23.621,219.2211]
[1673906174157,20.0,23.634,23.621,219.2211]
[1673906174353,17.0,23.633,23.621,219.2211]
[1673906174979,20.0,23.636,23.621,219.2211]
[1673906175190,17.0,23.635,23.622,20.0]
[1673906175399,20.0,23.638,23.622,20.0]
[1673906175825,20.0,23.638,23.621,219.2211]
[1673906176367,20.0,23.638,23.622,20.0]
[1673906176571,31.75,23.641,23.622,20.0]
[1673906176889,5.5090786,23.645,23.623,17.0]
[1673906177201,5.5090786,23.645,23.625,20.0]
[1673906177410,5.5090786,23.645,23.626,37.0]
[1673906177627,5.5090786,23.645,23.627,20.0]
[1673906177838,5.5090786,23.645,23.628,37.0]
[1673906178032,5.5090786,23.645,23.629,20.0]
[1673906178784,5.5090786,23.645,23.628,20.0]
[1673906179196,5.5090786,23.645,23.629,17.0]
[1673906179613,5.5090786,23.645,23.624,20.0]
[1673906179827,5.5090786,23.645,23.625,16.92953622]
[1673906180035,20.0,23.643,23.622,20.0]
[1673906180263,37.0,23.642,23.622,20.0]
[1673906180573,20.0,23.641,23.622,20.0]
[1673906180763,20.0,23.639,23.622,20.0]
[1673906181941,20.0,23.639,23.623,17.0]
[1673906182151,17.0,23.642,23.623,17.0]
[1673906182366,20.0,23.649,23.624,20.0]
[1673906182367,37.2490786,23.645,23.624,20.0]
[1673906182554,5.5090786,23.645,23.625,37.0]
[1673906182764,5.5090786,23.645,23.626,20.0]
[1673906182985,5.5090786,23.645,23.628,20.0]
[1673906183199,5.5090786,23.645,23.629,20.0]
[1673906183819,5.5090786,23.645,23.628,20.0]
[1673906184036,5.5090786,23.645,23.628,40.0]
[1673906184346,5.5090786,23.645,23.63,16.24]
[1673906184551,5.5090786,23.645,23.631,17.0]
[1673906184760,7.86e-05,23.645,23.632,20.0]
[1673906184991,128.9289,23.669,23.633,17.0]
[1673906185192,128.9289,23.669,23.634,20.0]
[1673906185392,20.0,23.659,23.635,17.0]
[1673906185602,20.0,23.659,23.636,20.0]
[1673906185918,20.0,23.659,23.637,17.0]
[1673906186134,20.0,23.659,23.637,53.80024528]
[1673906186332,20.0,23.659,23.64,16.17]
[1673906186546,20.0,23.666,23.641,37.0]
[1673906186865,20.0,23.666,23.642,60.06327098]
[1673906187073,20.0,23.666,23.643,17.0]
[1673906187281,20.0,23.666,23.644,20.0]
[1673906187501,20.0,23.669,23.645,17.0]
[1673906187703,20.0,23.669,23.646,20.0]
[1673906187908,20.0,23.669,23.648,20.0]
[1673906188232,20.0,23.669,23.649,55.40012264]
[1673906188658,20.0,23.669,23.65,18.40012264]
[1673906188869,20.0,23.669,23.651,37.0]
[1673906189278,20.0,23.672,23.652,18.40012264]
[1673906189488,20.0,23.672,23.653,37.0]
[1673906189697,31.7,23.677,23.653,37.0]
[1673906189909,20.0,23.678,23.655,20.0]
[1673906190333,41.46196354,23.678,23.656,38.40012264]
[1673906190663,41.46196354,23.678,23.656,18.40012264]
[1673906190875,51.7,23.677,23.651,112.3469]
[1673906191193,51.7,23.677,23.647,115.789]
[1673906191194,16.29,23.67,23.647,115.789]
[1673906191379,31.71,23.669,23.648,20.0]
[1673906191589,17.0,23.668,23.648,38.40012264]
[1673906191815,17.0,23.668,23.649,38.40012264]
[1673906192319,17.0,23.668,23.65,35.40012264]
[1673906192529,20.0,23.672,23.65,18.40012264]
[1673906192749,37.0,23.671,23.651,18.40012264]
[1673906192957,20.0,23.67,23.651,18.40012264]
[1673906193288,17.0,23.669,23.651,18.40012264]
[1673906194538,20.0,23.668,23.651,18.40012264]
[1673906196328,17.0,23.667,23.651,18.40012264]
[1673906198123,17.0,23.667,23.648,20.0]
[1673906198321,17.0,23.667,23.649,35.40012264]
[1673906198865,17.0,23.667,23.65,18.40012264]
[1673906199686,48.71,23.667,23.65,18.40012264]
[1673906199908,20.0,23.666,23.65,18.40012264]
[1673906200119,20.0,23.664,23.648,20.0]
[1673906200311,17.0,23.663,23.648,20.0]
[1673906200641,20.0,23.662,23.646,20.0]
[1673906200859,20.0,23.66,23.646,20.0]
[1673906204643,20.0,23.66,23.646,38.40012264]
[1673906209151,31.72,23.659,23.646,20.0]
[1673906209365,17.0,23.658,23.634,116.615]
[1673906209699,20.0,23.656,23.636,119.7471]
[1673906209883,48.73,23.655,23.636,119.7471]
[1673906210305,20.0,23.654,23.636,119.7471]
[1673906210532,48.73,23.653,23.636,119.7471]
[1673906210749,20.0,23.652,23.636,119.7471]
[1673906210939,17.0,23.651,23.636,119.7471]
[1673906211378,20.0,23.65,23.636,119.7471]
[1673906211570,20.0,23.65,23.637,20.0]
[1673906212641,20.0,23.65,23.636,119.7471]
[1673906214713,31.72,23.658,23.637,40.0]
[1673906214927,20.0,23.66,23.638,17.0]
[1673906215153,20.0,23.66,23.639,20.0]
[1673906215370,20.0,23.66,23.64,17.0]
[1673906215561,20.0,23.66,23.641,20.0]
[1673906215772,20.0,23.66,23.642,17.0]
[1673906216204,20.0,23.66,23.642,35.40012264]
[1673906216427,20.0,23.66,23.643,18.40012264]
[1673906216630,19.0,23.659,23.644,17.0]
[1673906217049,19.0,23.659,23.645,18.40012264]
[1673906219152,19.0,23.659,23.646,17.0]
[1673906219594,19.0,23.659,23.646,35.40012264]
[1673906221470,20.0,23.66,23.646,35.40012264]
[1673906221688,31.71,23.665,23.648,20.0]
[1673906222007,31.71,23.665,23.648,18.40012264]
[1673906222205,31.71,23.665,23.649,20.0]
[1673906222839,31.71,23.667,23.649,20.0]
[1673906223374,31.71,23.667,23.65,55.40012264]
[1673906223576,51.71,23.668,23.65,55.40012264]
[1673906223802,51.71,23.668,23.65,35.40012264]
[1673906225265,51.71,23.67,23.651,18.40012264]
[1673906225486,20.0,23.67,23.653,20.0]
[1673906225879,20.0,23.67,23.654,17.0]
[1673906226507,20.0,23.67,23.652,18.40012264]
[1673906226722,20.0,23.67,23.654,18.40012264]
[1673906226927,51.71,23.67,23.65,20.0]
[1673906227132,31.71,23.67,23.65,38.40012264]
[1673906227343,20.0,23.675,23.65,38.40012264]
[1673906227344,31.71,23.671,23.65,54.69012264]
[1673906227580,31.7,23.677,23.652,20.0]
[1673906227914,31.7,23.678,23.653,38.40012264]
[1673906228343,36.35,23.68,23.655,20.0]
[1673906228527,36.35,23.68,23.657,20.0]
[1673906228731,51.7,23.679,23.658,20.0]
[1673906228953,51.7,23.679,23.659,17.0]
[1673906229484,20.0,23.677,23.659,17.0]
[1673906230218,20.0,23.675,23.658,20.0]
[1673906230416,20.0,23.675,23.659,17.0]
[1673906230630,20.0,23.675,23.658,17.0]
[1673906230844,20.0,23.675,23.659,20.0]
[1673906233906,20.0,23.675,23.66,20.0]
[1673906235068,20.0,23.675,23.659,40.0]
[1673906235260,20.0,23.675,23.66,17.0]
[1673906242324,20.0,23.675,23.661,20.0]
[1673906242846,20.0,23.675,23.66,35.40012264]
[1673906245368,20.0,23.675,23.661,20.0]
[1673906246100,20.0,23.675,23.66,35.40012264]
[1673906248304,20.0,23.675,23.66,17.0]
[1673906250738,73.16196354,23.674,23.642,6.255]
[1673906250931,37.0,23.673,23.642,6.255]
[1673906251135,20.0,23.671,23.648,132.55532264]
[1673906251340,20.0,23.669,23.648,132.55532264]
[1673906251556,48.71,23.668,23.648,132.55532264]
[1673906251765,20.0,23.667,23.648,132.55532264]
[1673906252099,20.0,23.665,23.648,132.55532264]
[1673906252305,31.71,23.666,23.65,20.0]
[1673906252505,20.0,23.667,23.651,17.0]
[1673906252716,20.0,23.667,23.651,35.40012264]
[1673906252926,20.0,23.667,23.652,18.40012264]
[1673906253346,48.71,23.666,23.648,114.1552]
[1673906253554,48.71,23.666,23.649,17.0]
[1673906253763,20.0,23.665,23.649,17.0]
[1673906255457,31.7,23.673,23.65,34.61012264]
[1673906255672,31.7,23.676,23.651,37.0]
[1673906255867,31.7,23.676,23.652,2.335]
[1673906256196,31.7,23.676,23.653,20.0]
[1673906256392,31.7,23.676,23.654,37.0]
[1673906256603,31.7,23.676,23.655,20.0]
[1673906256932,31.7,23.676,23.657,20.0]
[1673906257144,31.7,23.676,23.658,17.0]
[1673906257351,31.7,23.676,23.658,37.0]
[1673906257600,31.7,23.676,23.658,55.40012264]
[1673906257783,31.7,23.676,23.659,18.40012264]
[1673906258085,51.7,23.677,23.66,17.0]
[1673906258295,51.7,23.677,23.659,18.40012264]
[1673906258517,394.3,23.682,23.66,67.47012264]
[1673906258822,20.0,23.681,23.661,20.0]
[1673906259139,20.0,23.681,23.662,38.40012264]
[1673906259347,20.0,23.681,23.664,20.0]
[1673906259556,20.0,23.681,23.665,37.0]
[1673906259751,20.0,23.681,23.665,55.40012264]
[1673906259962,51.69,23.681,23.666,18.40012264]
[1673906260176,51.69,23.681,23.667,20.0]
[1673906260388,20.0,23.681,23.667,20.0]
[1673906264817,20.0,23.681,23.666,20.0]
[1673906265128,20.0,23.681,23.667,17.0]
[1673906265356,20.0,23.681,23.668,20.0]
[1673906266083,51.69,23.681,23.668,20.0]
[1673906266393,51.69,23.681,23.666,20.0]
[1673906269860,51.69,23.681,23.667,17.0]
[1673906270166,51.69,23.681,23.668,20.0]
[1673906270385,20.0,23.681,23.669,17.0]
[1673906270787,20.0,23.681,23.67,20.0]
[1673906272153,20.0,23.681,23.667,20.0]
[1673906272369,20.0,23.681,23.668,17.0]
[1673906272616,20.0,23.682,23.669,20.0]
[1673906272899,20.0,23.682,23.67,17.0]
[1673906276248,51.69,23.685,23.67,17.0]
[1673906276588,20.0,23.685,23.67,17.0]
[1673906278897,20.0,23.685,23.671,20.0]
[1673906279104,31.68,23.693,23.672,17.0]
[1673906279295,20.0,23.692,23.673,40.0]
[1673906279510,20.0,23.692,23.675,20.0]
[1673906279733,20.0,23.692,23.676,20.0]
[1673906279931,20.0,23.692,23.677,17.0]
[1673906280350,20.0,23.692,23.678,20.0]
[1673906281498,20.0,23.692,23.679,17.0]
[1673906281715,20.0,23.692,23.68,20.0]
[1673906281925,20.0,23.692,23.681,17.0]
[1673906282254,95.9423117,23.702,23.682,20.0]
[1673906282466,95.9423117,23.702,23.69,12.17]
[1673906282687,95.9423117,23.702,23.691,40.438]
[1673906282888,95.9423117,23.702,23.691,113.76854276]
[1673906283079,95.9423117,23.702,23.692,38.40012264]
[1673906283292,31.64,23.719,23.694,20.0]
[1673906283513,20.0,23.718,23.696,20.0]
[1673906283723,20.0,23.718,23.697,20.0]
[1673906283953,12.16,23.71,23.687,26.635]
[1673906284148,20.0,23.708,23.688,17.0]
[1673906284372,20.0,23.708,23.691,18.40012264]
[1673906284674,20.0,23.708,23.688,17.0]
[1673906284881,20.0,23.706,23.68,30.67012264]
[1673906285095,31.66,23.705,23.68,30.67012264]
[1673906285309,31.66,23.705,23.688,18.40012264]
[1673906285518,20.0,23.706,23.689,20.0]
[1673906285942,20.0,23.706,23.689,38.40012264]
[1673906286250,31.66,23.707,23.69,17.0]
[1673906286565,51.66,23.709,23.691,38.40012264]
[1673906286766,20.0,23.709,23.692,17.0]
[1673906287399,43.83,23.71,23.692,17.0]
[1673906287602,31.65,23.71,23.694,20.0]
[1673906287828,20.0,23.711,23.694,20.0]
[1673906288038,20.0,23.711,23.695,18.40012264]
[1673906288246,20.0,23.711,23.695,35.40012264]
[1673906288458,20.0,23.711,23.696,20.0]
[1673906288663,20.0,23.711,23.697,17.0]
[1673906289713,112.4511,23.712,23.697,17.0]
[1673906289927,20.0,23.711,23.697,17.0]
[1673906290134,20.0,23.71,23.697,17.0]
[1673906290559,20.0,23.71,23.695,18.40012264]
[1673906290560,20.0,23.71,23.696,17.0]
[1673906290765,20.0,23.711,23.697,20.0]
[1673906290976,20.0,23.711,23.698,17.0]
[1673906291639,31.65,23.71,23.695,18.40012264]
[1673906291822,37.0,23.709,23.689,20.0]
[1673906292034,31.66,23.708,23.69,18.40012264]
[1673906292261,17.0,23.707,23.688,20.0]
[1673906292468,20.0,23.705,23.688,20.0]
[1673906292777,20.0,23.699,23.682,18.40012264]
[1673906292990,31.67,23.698,23.682,18.40012264]
[1673906293410,51.67,23.699,23.682,18.40012264]
[1673906294357,12.18,23.69,23.677,119.0468]
[1673906294555,12.18,23.69,23.673,111.1938]
[1673906294763,12.18,23.69,23.668,4.795]
[1673906294764,20.0,23.688,23.668,123.8418]
[1673906294980,31.68,23.687,23.668,119.0468]
[1673906295626,17.0,23.686,23.668,119.0468]
[1673906295932,20.0,23.684,23.668,119.0468]
[1673906296141,12.18,23.68,23.66,122.4834]
[1673906296350,48.7,23.679,23.66,122.4834]
[1673906296552,48.7,23.679,23.66,119.1314]
[1673906296768,20.0,23.678,23.656,116.5158]
[1673906296980,12.16,23.67,23.656,116.5158]
[1673906297301,12.16,23.67,23.648,20.0]
[1673906297496,31.71,23.669,23.648,20.0]
[1673906297705,20.0,23.675,23.648,20.0]
[1673906298048,31.7,23.674,23.65,12.18]
[1673906298234,31.7,23.674,23.651,20.0]
[1673906298443,31.7,23.674,23.651,38.40012264]
[1673906298654,20.0,23.673,23.651,20.0]
[1673906298986,12.16,23.67,23.641,116.5158]
[1673906299202,31.71,23.669,23.642,18.40012264]
[1673906299516,48.71,23.669,23.642,18.40012264]
[1673906299726,20.0,23.668,23.643,20.0]
[1673906300040,48.71,23.667,23.643,20.0]
[1673906300231,48.71,23.667,23.644,18.40012264]
[1673906300442,48.71,23.667,23.645,20.0]
[1673906301823,20.0,23.666,23.645,20.0]
[1673906302037,48.71,23.665,23.645,20.0]
[1673906302225,48.71,23.665,23.646,20.0]
[1673906302647,31.71,23.665,23.647,20.0]